bitfinex/quotes_ETHUSD_20240902
["timestamp","ask_amount","ask_price","bid_price","bid_amount"]
[1725320149162,5.2917,2547.0,2546.6,3.4227935]
[1725320149324,2.2917,2547.2,2546.7,3.14131]
[1725320149523,2.2917,2547.2,2546.7,3.34404919]
[1725320149722,5.2917,2547.2,2546.7,3.34404919]
[1725320150031,5.2917,2547.2,2546.7,3.34397919]
[1725320150256,5.2917,2547.2,2546.7,4.25604543]
[1725320151068,2.2917,2547.2,2546.8,3.14117]
[1725320151364,2.2917,2547.2,2546.8,3.34378261]
[1725320151929,2.2917,2547.2,2546.8,0.20261261]
[1725320158510,3.14098,2547.0,2546.8,0.20261261]
[1725320158660,5.62048,2547.0,2546.3,11.24464069]
[1725320158859,5.62059,2546.9,2546.3,10.4217]
[1725320160066,5.62059,2546.9,2546.4,3.14168]
[1725320161301,3.14128,2546.8,2546.3,7.28]
[1725320161505,2.4795,2546.7,2546.3,7.28]
[1725320162225,5.62085,2546.7,2546.3,7.28]
[1725320165013,8.76225,2546.7,2546.3,7.28]
[1725320165193,5.62085,2546.7,2546.3,7.28]
[1725320165399,8.76224,2546.7,2546.3,7.28]
[1725320165720,8.76224,2546.7,2546.1,3.14205]
[1725320166530,8.76224,2546.7,2546.2,0.20322353]
[1725320167032,5.62085,2546.7,2546.2,0.20322353]
[1725320167394,8.76224,2546.7,2546.2,0.20322353]
[1725320168529,5.62085,2546.7,2546.2,0.20322353]
[1725320168706,8.76227,2546.7,2546.2,0.20322353]
[1725320170407,3.14144,2546.6,2546.2,0.20322353]
[1725320171929,3.14144,2546.6,2546.1,3.14205]
[1725320172147,3.14144,2546.6,2546.3,0.20328874]
[1725320172299,3.14144,2546.6,2546.1,3.14205]
[1725320172641,3.14144,2546.6,2546.4,0.20316213]
[1725320172942,3.14144,2546.6,2546.5,0.20303553]
[1725320173108,3.14144,2546.6,2546.1,5.08755096]
[1725320173357,3.14144,2546.6,2546.5,0.20303553]
[1725320173531,3.14144,2546.6,2546.1,3.14205]
[1725320173831,3.14144,2546.6,2546.5,0.20303553]
[1725320174451,3.14144,2546.6,2546.1,3.14205]
[1725320174626,3.14144,2546.6,2546.5,0.20303553]
[1725320174797,3.14144,2546.6,2546.1,3.14205]
[1725320175431,5.62085,2546.7,2546.2,0.20341536]
[1725320175642,8.76225,2546.7,2546.2,0.20341536]
[1725320176002,3.14145,2546.6,2546.2,0.20341536]
[1725320176336,3.14145,2546.6,2546.0,11.36928579]
[1725320176523,3.14145,2546.6,2546.3,0.20328874]
[1725320176726,3.14145,2546.6,2546.0,17.88160289]
[1725320176897,3.14145,2546.6,2546.4,0.20316213]
[1725320177127,3.14145,2546.6,2546.0,14.51139579]
[1725320177599,8.76224,2546.7,2546.1,3.14205]
[1725320177811,8.76224,2546.7,2546.1,5.05633307]
[1725320179339,8.76225,2546.7,2546.1,5.05633307]
[1725320180434,5.62085,2546.7,2546.1,5.05633307]
[1725320180946,5.62085,2546.7,2546.2,5.43947]
[1725320181157,5.46194,2546.9,2546.3,3.22027621]
[1725320181306,3.0,2546.8,2546.3,3.42365607]
[1725320181628,3.0,2546.8,2546.5,3.14156]
[1725320181834,2.3208,2546.9,2546.5,3.14156]
[1725320182034,3.0,2547.0,2546.6,0.20291851]
[1725320191346,6.14106,2547.0,2546.6,0.20291851]
[1725320191665,6.14106,2547.0,2546.4,3.14164]
[1725320191666,2.3031,2546.9,2546.7,0.20259532]
[1725320191874,3.59767828,2546.9,2546.4,3.14164]
[1725320192197,3.59767828,2546.9,2546.5,0.20284849]
[1725320192198,6.14119,2546.8,2546.5,0.20284849]
[1725320192389,3.30438683,2546.7,2546.5,0.20284849]
[1725320192589,3.30438683,2546.7,2546.3,7.28]
[1725320192754,3.30438683,2546.7,2546.6,0.2027219]
[1725320192755,9.58702683,2546.7,2546.6,0.2027219]
[1725320192941,3.14187,2546.3,2546.0,7.4042451]
[1725320193143,2.3305,2546.2,2546.0,0.1242451]
[1725320194748,5.47256,2546.1,2546.0,0.1242451]
[1725320194979,9.15589128,2546.1,2546.0,0.1242451]
[1725320195153,6.01383128,2546.1,2546.0,0.1242451]
[1725320195588,5.3305,2546.1,2546.0,0.1242451]
[1725320196530,5.3305,2546.1,2546.0,0.32783221]
[1725320198133,3.0,2546.1,2546.0,0.32783221]
[1725320199639,2.3266,2546.2,2546.0,0.32783221]
[1725320199844,5.3266,2546.2,2546.0,0.32783221]
[1725320200347,2.3266,2546.2,2546.0,0.32783221]
[1725320201144,3.0,2546.3,2546.0,0.32783221]
[1725320201294,3.0,2546.3,2546.0,3.47000221]
[1725320201495,2.3266,2546.4,2546.0,3.47000221]
[1725320202409,2.3266,2546.4,2546.0,0.32783221]
[1725320202825,5.46831,2546.4,2546.0,0.32783221]
[1725320203030,3.0,2546.3,2546.0,0.32783221]
[1725320203342,5.40193,2546.2,2546.0,0.32783221]
[1725320203565,2.2599,2546.2,2546.0,0.32783221]
[1725320204967,5.40187,2546.2,2546.0,0.32783221]
[1725320212174,5.3091,2546.4,2546.0,0.32783221]
[1725320212374,5.3091,2546.4,2546.0,3.46994221]
[1725320214904,5.3091,2546.4,2546.0,0.32783221]
[1725320217574,3.0,2546.4,2546.0,4.37797943]
[1725320217808,8.42955,2546.6,2546.0,4.37797943]
[1725320218893,3.14158,2546.5,2546.0,4.37797943]
[1725320219132,3.0,2546.4,2546.0,0.32783221]
[1725320219438,2.2881,2546.3,2546.0,0.32783221]
[1725320221902,2.2881,2546.3,2546.0,3.47000221]
[1725320222103,3.0,2546.4,2546.0,3.47000221]
[1725320222329,3.0,2546.4,2546.0,4.13123643]
[1725320224028,3.0,2546.4,2546.0,4.13118643]
[1725320224835,3.0,2546.4,2546.0,7.27329643]
[1725320225403,3.0,2546.4,2546.0,4.13117643]
[1725320225940,3.0,2546.4,2546.0,7.27328643]
[1725320227866,3.0,2546.4,2546.0,4.13117643]
[1725320228072,2.4207,2546.5,2546.1,3.14204]
[1725320228269,4.50215279,2546.7,2546.2,3.14191]
[1725320228270,5.4772,2546.7,2546.2,3.14191]
[1725320228431,5.4772,2546.7,2546.2,3.34568514]
[1725320229665,3.0,2546.6,2546.2,3.34568514]
[1725320229965,3.0,2546.6,2546.2,4.11063489]
[1725320232726,3.0,2546.6,2546.2,7.25250489]
[1725320232962,3.0,2546.6,2546.2,7.25246489]
[1725320233173,3.0,2546.6,2546.3,3.14181]
[1725320233376,3.0,2546.6,2546.3,0.20364852]
[1725320235150,3.0,2546.6,2546.3,3.34538852]
[1725320235397,2.3358,2546.7,2546.3,4.07060835]
[1725320235597,2.3358,2546.7,2546.3,0.20364852]
[1725320235953,2.4327,2546.4,2546.3,0.20364852]
[1725320236198,2.4327,2546.4,2546.0,10.5463451]
[1725320236354,2.4327,2546.4,2546.3,0.20339905]
[1725320236693,2.4327,2546.4,2546.0,10.5463451]
[1725320236858,2.4327,2546.4,2546.3,0.20339905]
[1725320237077,2.4327,2546.4,2546.0,10.5463451]
[1725320237249,2.4327,2546.4,2546.3,0.20339905]
[1725320237464,2.4327,2546.4,2546.0,10.5463451]
[1725320237646,2.4327,2546.4,2546.3,0.20339905]
[1725320237852,2.4327,2546.4,2546.0,10.5463451]
[1725320238067,2.4327,2546.4,2546.3,0.20339905]
[1725320238394,3.14183,2546.3,2546.0,7.4042451]
[1725320238692,2.2991,2546.2,2546.0,7.4042451]
[1725320240453,2.2991,2546.2,2546.0,0.1242451]
[1725320241319,2.2991,2546.2,2546.1,0.20372906]
[1725320252971,3.14183,2546.3,2546.1,0.20372906]
[1725320253145,2.3777,2546.4,2546.1,0.20372906]
[1725320253463,5.3777,2546.4,2546.1,0.20372906]
[1725320254566,3.0,2546.4,2546.1,0.20372906]
[1725320255955,3.0,2546.4,2546.1,5.82141906]
[1725320256145,5.2911,2546.6,2546.1,6.73020148]
[1725320256367,5.2911,2546.6,2546.1,0.20372906]
[1725320256569,3.14157,2546.5,2546.1,0.20372906]
[1725320257164,6.2832,2546.5,2546.1,0.20372906]
[1725320257353,3.14157,2546.5,2546.1,0.20372906]
[1725320257552,6.2832,2546.5,2546.1,0.20372906]
[1725320257957,3.14157,2546.5,2546.1,0.20372906]
[1725320259073,4.43505128,2546.5,2546.1,0.20372906]
[1725320259283,7.57668128,2546.5,2546.1,0.20372906]
[1725320259459,4.43505128,2546.5,2546.1,0.20372906]
[1725320259997,7.57668128,2546.5,2546.1,0.20372906]
[1725320260498,4.43505128,2546.5,2546.1,0.20372906]
[1725320260652,3.14157,2546.5,2546.1,0.20372906]
[1725320263261,3.0,2546.6,2546.2,2.4757]
[1725320263460,6.1415,2546.6,2546.1,0.20372906]
[1725320263705,6.1415,2546.6,2546.3,0.20356696]
[1725320263960,6.1415,2546.6,2546.2,0.20369359]
[1725320264255,3.0,2546.6,2546.4,0.20344035]
[1725320264410,3.0,2546.6,2546.3,0.20356696]
[1725320264617,3.0,2546.6,2546.1,3.14201]
[1725320265163,3.0,2546.6,2546.2,0.20367919]
[1725320265864,2.2911,2546.5,2546.2,0.20367919]
[1725320266063,5.2911,2546.5,2546.2,0.20367919]
[1725320266264,8.43269,2546.5,2546.0,3.2663351]
[1725320266423,9.85551961,2546.5,2546.3,0.20355257]
[1725320266624,9.85551961,2546.5,2546.0,3.2663351]
[1725320266824,9.85551961,2546.5,2546.4,0.20342596]
[1725320267026,9.85551961,2546.5,2546.0,3.2663351]
[1725320267555,9.85551961,2546.5,2546.1,0.20380583]
[1725320267771,1.12162724,2546.4,2546.1,0.20380583]
[1725320268823,3.14188,2546.3,2546.1,0.20380583]
[1725320269037,2.4809,2546.2,2546.1,0.20380583]
[1725320272360,3.14176,2546.4,2546.1,0.20380583]
[1725320272934,6.28352,2546.4,2546.1,0.20380583]
[1725320273228,4.320142,2546.3,2546.1,0.20380583]
[1725320273834,2.3321,2546.2,2546.1,0.20380583]
[1725320275444,5.40596,2546.4,2546.1,0.20380583]
[1725320276187,8.54773,2546.4,2546.1,0.20380583]
[1725320277358,3.14181,2546.3,2546.1,0.20380583]
[1725320279289,5.46763,2546.2,2546.1,0.20380583]
[1725320281461,7.64461279,2546.2,2546.1,0.20380583]
[1725320281643,12.94931279,2546.2,2546.1,0.20380583]
[1725320284297,13.49931279,2546.2,2546.1,0.20380583]
[1725320287409,16.64124279,2546.2,2546.1,0.20380583]
[1725320287560,18.42084477,2546.2,2546.1,0.20380583]
[1725320292124,13.91816198,2546.2,2546.1,0.20380583]
[1725320292343,8.052,2546.7,2546.1,0.20380583]
[1725320292621,3.14189,2546.3,2546.1,0.20380583]
[1725320292781,3.14178,2546.4,2546.1,0.20380583]
[1725320292982,6.28358,2546.4,2546.1,0.20380583]
[1725320293375,3.14184,2546.3,2546.1,0.20380583]
[1725320294221,3.0,2546.2,2546.1,0.20380583]
[1725320294429,3.14156,2546.5,2546.2,2.3924]
[1725320294691,3.14156,2546.5,2546.1,0.20380583]
[1725320294916,3.14156,2546.5,2546.3,0.2041668]
[1725320295085,3.14156,2546.5,2546.2,0.20429342]
[1725320295285,3.14156,2546.5,2546.4,0.20404019]
[1725320295519,3.14156,2546.5,2546.3,0.2041668]
[1725320295916,3.0,2546.4,2546.0,6.22468761]
[1725320296085,3.0,2546.4,2546.1,0.93668676]
[1725320296484,3.14156,2546.5,2546.1,0.93668676]
[1725320297082,6.14136,2546.7,2546.1,0.93668676]
[1725320297284,3.0,2546.6,2546.1,0.93668676]
[1725320297485,3.0,2546.6,2546.2,0.71613744]
[1725320298134,6.14151,2546.6,2546.2,0.71613744]
[1725320299741,3.0,2546.6,2546.3,2.4456]
[1725320300901,3.0,2546.6,2546.3,5.58732]
[1725320301105,6.1412,2546.8,2546.4,0.9523831]
[1725320301547,6.1412,2546.8,2546.5,0.20379362]
[1725320301750,3.0,2546.8,2546.5,0.20379362]
[1725320302410,6.1412,2546.8,2546.5,0.20379362]
[1725320304724,6.1412,2546.8,2546.5,0.20379362]
[1725320305018,3.0,2546.8,2546.5,0.20379362]
[1725320306453,6.14121,2546.8,2546.5,0.20379362]
[1725320306660,6.14121,2546.8,2546.3,5.58739]
[1725320306868,6.14121,2546.8,2546.6,0.20327353]
[1725320307016,7.43299928,2546.8,2546.3,5.58739]
[1725320307359,6.14121,2546.8,2546.7,0.20314695]
[1725320307825,6.14121,2546.8,2546.3,5.58739]
[1725320308031,6.14121,2546.8,2546.7,0.20314695]
[1725320308250,7.43299928,2546.8,2546.3,5.58739]
[1725320308461,6.14121,2546.8,2546.7,0.20314695]
[1725320308663,6.14121,2546.8,2546.3,5.58739]
[1725320308868,6.14121,2546.8,2546.7,0.20314695]
[1725320309090,7.43299928,2546.8,2546.3,5.58739]
[1725320309300,6.14121,2546.8,2546.7,0.20314695]
[1725320309447,6.14121,2546.8,2546.3,5.58739]
[1725320309800,6.14121,2546.8,2546.7,0.20314695]
[1725320309978,6.14121,2546.8,2546.3,2.4456]
[1725320310176,6.14121,2546.8,2546.4,0.20352672]
[1725320312456,6.14121,2546.8,2546.2,3.14183]
[1725320312698,6.14121,2546.8,2546.5,0.20340012]
[1725320312877,6.14121,2546.8,2546.2,3.14183]
[1725320313087,6.14121,2546.8,2546.6,0.20327353]
[1725320313282,6.14121,2546.8,2546.2,3.14183]
[1725320313596,6.14121,2546.8,2546.7,0.20314695]
[1725320313801,7.43299928,2546.8,2546.2,3.14183]
[1725320313950,6.14121,2546.8,2546.7,0.20314695]
[1725320314153,6.14121,2546.8,2546.2,3.14183]
[1725320314353,6.14121,2546.8,2546.7,0.20314695]
[1725320314554,3.14132,2546.7,2546.2,3.14183]
[1725320314871,3.0,2546.6,2546.2,3.14183]
[1725320315768,3.0,2546.6,2546.2,6.2837]
[1725320316557,3.0,2546.6,2546.3,0.20365333]
[1725320320418,3.0,2546.6,2546.3,3.34545333]
[1725320321424,5.4331,2546.6,2546.3,3.34545333]
[1725320321574,3.14158,2546.5,2546.3,0.20365333]
[1725320322008,3.14158,2546.5,2546.0,3.2663251]
[1725320322179,3.14158,2546.5,2546.4,0.20346435]
[1725320322519,4.3745982,2546.5,2546.4,0.20346435]
[1725320322685,4.3745982,2546.5,2546.0,3.2663251]
[1725320323013,3.14158,2546.5,2546.1,0.20389216]
[1725320323778,8.57454,2546.6,2546.1,3.34593216]
[1725320326485,5.4331,2546.6,2546.1,6.48793216]
[1725320327273,3.0,2546.6,2546.2,2.2847]
[1725320327537,5.3954,2546.8,2546.3,3.1417]
[1725320327834,5.3954,2546.8,2546.4,3.14162]
[1725320328192,5.3954,2546.8,2546.5,0.2033857]
[1725320328705,5.3954,2546.8,2546.3,6.28345]
[1725320328907,5.3954,2546.8,2546.4,3.3451923]
[1725320329933,6.28302,2546.6,2546.4,0.2035123]
[1725320330287,6.28302,2546.6,2546.0,5.5510551]
[1725320330529,6.28302,2546.6,2546.1,0.20389216]
[1725320331319,3.14149,2546.6,2546.1,3.34591216]
[1725320334703,6.28301,2546.6,2546.1,3.34591216]
[1725320334903,3.14149,2546.6,2546.1,3.34591216]
[1725320335703,6.283,2546.6,2546.1,3.34591216]
[1725320335913,3.14149,2546.6,2546.1,3.34591216]
[1725320336107,3.14149,2546.6,2546.1,4.96360889]
[1725320337807,2.3954,2546.7,2546.2,3.14192]
[1725320337995,8.53675,2546.7,2546.2,3.14187]
[1725320338193,5.3954,2546.7,2546.3,0.20366771]
[1725320339156,3.0,2546.7,2546.3,0.20366771]
[1725320339469,2.3196,2547.0,2546.4,3.14157]
[1725320339766,5.46055,2547.0,2546.5,0.20338091]
[1725320340077,3.0,2546.9,2546.5,0.20338091]
[1725320340680,6.1411,2546.9,2546.5,0.20338091]
[1725320340885,7.43734028,2546.9,2546.5,0.20338091]
[1725320342283,6.1411,2546.9,2546.5,0.20338091]
[1725320342484,3.0,2546.9,2546.5,0.20338091]
[1725320342996,7.50190279,2546.9,2546.5,0.20338091]
[1725320343282,2.3925,2546.8,2546.5,0.20338091]
[1725320343435,2.3925,2546.8,2546.3,3.14179]
[1725320343637,2.3925,2546.8,2546.6,0.20325432]
[1725320343950,2.3925,2546.8,2546.7,0.20312774]
[1725320344338,3.55996,2546.8,2546.3,3.14179]
[1725320344541,2.3925,2546.8,2546.7,0.20312774]
[1725320344745,2.3925,2546.8,2546.3,3.14179]
[1725320344952,2.3925,2546.8,2546.7,0.20305577]
[1725320345179,2.3925,2546.8,2546.3,3.14179]
[1725320345381,2.3925,2546.8,2546.7,0.20305577]
[1725320345674,3.55996,2546.8,2546.3,3.14179]
[1725320345881,2.3925,2546.8,2546.7,0.20305577]
[1725320346097,5.53371,2546.8,2546.2,7.28]
[1725320346243,8.67497,2546.8,2546.7,0.20305577]
[1725320346441,3.14144,2546.6,2546.2,7.28]
[1725320347434,3.14144,2546.6,2546.1,5.50414]
[1725320349035,3.14144,2546.6,2546.1,6.32708069]
[1725320349199,5.53371,2546.8,2546.2,3.1419]
[1725320349626,3.14132,2546.7,2546.1,7.31493568]
[1725320349831,3.14132,2546.7,2546.1,10.45691568]
[1725320350003,3.14132,2546.7,2546.1,7.31487568]
[1725320350207,3.14132,2546.7,2546.1,10.45685568]
[1725320350604,5.53371,2546.8,2546.1,7.31487568]
[1725320350941,5.53371,2546.8,2546.2,1.14040415]
[1725320351114,3.14132,2546.7,2546.1,9.46899069]
[1725320351707,3.14132,2546.7,2546.1,9.46814083]
[1725320351908,3.14132,2546.7,2546.2,3.14189]
[1725320352925,8.67501,2546.8,2546.2,3.14189]
[1725320353118,9.842511,2546.8,2546.2,3.14189]
[1725320353322,6.701211,2546.8,2546.3,3.14173]
[1725320353538,5.53371,2546.8,2546.3,3.14173]
[1725320356027,8.67497,2546.8,2546.3,3.14173]
[1725320356428,3.14132,2546.7,2546.1,8.64520014]
[1725320356760,2.4898,2546.6,2546.1,3.14195]
[1725320357549,2.4898,2546.6,2546.1,6.28394]
[1725320357733,2.4898,2546.6,2546.1,3.14195]
[1725320358035,3.14172,2546.4,2546.0,0.1242451]
[1725320358238,2.4898,2546.3,2546.0,0.1242451]
[1725320358655,5.63168,2546.3,2546.0,0.1242451]
[1725320361641,5.63168,2546.3,2546.1,0.20386341]
[1725320361846,0.87734,2546.2,2546.1,0.20386341]
[1725320364782,4.01927,2546.2,2546.1,0.20386341]
[1725320365275,12.4224,2546.2,2546.1,0.20386341]
[1725320365481,11.54506,2546.2,2546.1,0.20386341]
[1725320370523,14.68699,2546.2,2546.1,0.20386341]
[1725320370732,12.90581279,2546.2,2546.1,0.20386341]
[1725320375330,11.54506,2546.2,2546.1,0.20386341]
[1725320375512,13.013738,2546.2,2546.1,0.20386341]
[1725320375812,9.871808,2546.2,2546.1,0.20386341]
[1725320376031,8.40313,2546.2,2546.1,0.20386341]
[1725320376525,6.14193,2546.2,2546.1,0.20386341]
[1725320376753,3.0,2546.2,2546.1,0.20386341]
[1725320386010,8.61306,2546.4,2546.1,0.20386341]
[1725320386314,3.0,2546.2,2546.1,0.20386341]
[1725320386673,3.0,2546.3,2546.1,2.66326341]
[1725320386877,3.14146,2546.6,2546.1,3.07808954]
[1725320387376,5.55979,2546.7,2546.1,0.61868954]
[1725320387377,3.14158,2546.5,2546.1,0.61868954]
[1725320387612,3.14158,2546.5,2546.1,0.20386341]
[1725320390808,3.14151,2546.6,2546.1,0.20386341]
[1725320391022,3.0,2546.5,2546.1,0.20386341]
[1725320391732,3.0,2546.5,2546.1,3.34588341]
[1725320392104,3.0,2546.5,2546.1,0.20386341]
[1725320393953,3.0,2546.5,2546.1,3.34591341]
[1725320394103,3.0,2546.6,2546.2,2.2637]
[1725320394307,3.0,2546.6,2546.3,0.20390283]
[1725320394308,6.14145,2546.6,2546.3,0.20390283]
[1725320394948,3.0,2546.6,2546.3,0.20390283]
[1725320399241,2.3627,2546.5,2546.3,0.20390283]
[1725320399555,2.3627,2546.5,2546.0,10.5463451]
[1725320399752,2.3627,2546.5,2546.1,0.20415608]
[1725320399910,2.3627,2546.5,2546.1,3.34614608]
[1725320400652,5.50426,2546.5,2546.1,3.34614608]
[1725320401021,5.50426,2546.5,2546.1,0.20415608]
[1725320401227,3.14169,2546.4,2546.1,0.20415608]
[1725320401432,3.527263,2546.5,2546.1,0.20415608]
[1725320402113,3.14187,2546.3,2546.1,0.20415608]
[1725320403367,2.4244,2546.2,2546.1,0.20415608]
[1725320404448,3.295216,2546.2,2546.1,0.20415608]
[1725320405967,7.79789879,2546.2,2546.1,0.20415608]
[1725320406147,9.92708279,2546.2,2546.1,0.20415608]
[1725320406937,13.06901279,2546.2,2546.1,0.20415608]
[1725320408130,3.14206,2546.1,2546.0,0.1242451]
[1725320408337,7.44897428,2546.1,2546.0,0.32878698]
[1725320408823,10.59103428,2546.1,2546.0,0.32878698]
[1725320412850,10.59103428,2546.1,2546.0,0.1242451]
[1725320417499,10.59103428,2546.1,2546.0,0.32878698]
[1725320417650,10.59103428,2546.1,2546.0,0.1242451]
[1725320418147,10.59103428,2546.1,2546.0,0.32891178]
[1725320420091,10.59103428,2546.1,2546.0,0.1242451]
[1725320420261,10.59103428,2546.1,2546.0,0.32891178]
[1725320420453,10.59103428,2546.1,2546.0,0.1242451]
[1725320420655,10.59103428,2546.1,2546.0,0.32891178]
[1725320426156,10.59103428,2546.1,2546.0,0.1242451]
[1725320426885,10.59103428,2546.1,2546.0,0.32891178]
[1725320427055,10.59103428,2546.1,2546.0,0.1242451]
[1725320428010,12.85483428,2546.1,2546.0,0.1242451]
[1725320428204,12.85483428,2546.1,2546.0,0.32891178]
[1725320430281,12.85483428,2546.1,2546.0,0.1242451]
[1725320430779,12.85483428,2546.1,2546.0,0.32902699]
[1725320438817,10.59103428,2546.1,2546.0,0.32902699]
[1725320439523,12.96723428,2546.1,2546.0,0.32902699]
[1725320440442,12.96723428,2546.1,2546.0,0.1242451]
[1725320440785,12.96723428,2546.1,2546.0,0.32908939]
[1725320443457,12.96723428,2546.1,2546.0,0.1242451]
[1725320444018,12.96723428,2546.1,2546.0,0.32909899]
[1725320444550,10.59103428,2546.1,2546.0,0.32909899]
[1725320444724,16.65929428,2546.1,2546.0,0.1242451]
[1725320447438,18.02004707,2546.1,2546.0,0.1242451]
[1725320452075,14.87798707,2546.1,2546.0,0.1242451]
[1725320454137,14.87798707,2546.1,2546.0,0.32485542]
[1725320457171,12.50178707,2546.1,2546.0,0.32485542]
[1725320458577,7.44897428,2546.1,2546.0,0.32485542]
[1725320458724,6.14206,2546.1,2546.0,0.32485542]
[1725320459522,9.28412,2546.1,2546.0,0.32485542]
[1725320461133,11.64052,2546.1,2546.0,0.32485542]
[1725320462330,12.19052,2546.1,2546.0,0.32485542]
[1725320462534,12.19052,2546.1,2546.0,0.1242451]
[1725320462777,13.85984328,2546.1,2546.0,0.1242451]
[1725320462986,17.10940328,2546.1,2546.0,0.1242451]
[1725320468138,13.96734328,2546.1,2546.0,0.1242451]
[1725320468383,9.83412,2546.1,2546.0,0.1242451]
[1725320471362,15.38588,2546.1,2546.0,0.1242451]
[1725320476951,16.74663279,2546.1,2546.0,0.1242451]
[1725320479904,19.88869279,2546.1,2546.0,0.1242451]
[1725320480204,21.92215885,2546.1,2546.0,0.1242451]
[1725320480360,18.78009885,2546.1,2546.0,0.1242451]
[1725320481198,21.92215885,2546.1,2546.0,0.1242451]
[1725320481370,18.78009885,2546.1,2546.0,0.1242451]
[1725320481773,21.92215885,2546.1,2546.0,0.1242451]
[1725320482096,18.78009885,2546.1,2546.0,0.1242451]
[1725320482306,21.92215885,2546.1,2546.0,0.1242451]
[1725320482972,18.78009885,2546.1,2546.0,0.1242451]
[1725320483170,21.92215885,2546.1,2546.0,0.1242451]
[1725320483897,18.78009885,2546.1,2546.0,0.1242451]
[1725320484201,21.92215885,2546.1,2546.0,0.1242451]
[1725320484884,22.36812664,2546.1,2546.0,5.1e-06]
[1725320485355,22.8824482,2546.1,2546.0,5.1e-06]
[1725320491176,22.36812664,2546.1,2546.0,5.1e-06]
[1725320491396,22.8824482,2546.1,2546.0,5.1e-06]
[1725320494592,22.36812664,2546.1,2546.0,5.1e-06]
[1725320497631,21.92215885,2546.1,2546.0,5.1e-06]
[1725320500290,22.36812664,2546.1,2546.0,5.1e-06]
[1725320500491,32.66262464,2546.1,2546.0,5.1e-06]
[1725320500909,33.17508816,2546.1,2546.0,5.1e-06]
[1725320501433,32.77933116,2546.1,2546.0,5.1e-06]
[1725320501747,31.73133116,2546.1,2546.0,5.1e-06]
[1725320501946,31.21886764,2546.1,2546.0,5.1e-06]
[1725320503044,31.73125291,2546.1,2546.0,5.1e-06]
[1725320505949,29.32734591,2546.1,2546.0,5.1e-06]
[1725320508060,32.46940591,2546.1,2546.0,5.1e-06]
[1725320509454,29.12280091,2546.1,2546.0,5.1e-06]
[1725320509767,28.67683312,2546.1,2546.0,5.1e-06]
[1725320510626,31.81889312,2546.1,2546.0,5.1e-06]
[1725320514763,28.67683312,2546.1,2546.0,5.1e-06]
[1725320515151,31.81889312,2546.1,2546.0,5.1e-06]
[1725320515992,24.70576833,2546.1,2546.0,5.1e-06]
[1725320516192,21.88454412,2546.1,2546.0,5.1e-06]
[1725320516395,21.88454412,2546.1,2545.1,2.3578]
[1725320516396,6.28634,2545.2,2545.1,2.3578]
[1725320516622,3.0,2545.2,2544.8,2.3578]
[1725320516904,3.0,2545.2,2544.7,0.005]
[1725320516905,9.43098,2544.8,2544.7,0.005]
[1725320517110,12.43098,2544.8,2544.7,0.005]
[1725320517460,12.98098,2544.8,2544.7,0.005]
[1725320518890,11.19807279,2544.8,2544.7,2.4813]
[1725320522307,3.0,2544.8,2544.7,2.72943]
[1725320522490,6.14349,2545.0,2544.7,2.91868437]
[1725320522683,3.14356,2544.9,2544.7,2.91868437]
[1725320522920,4.50412279,2545.1,2544.7,2.91868437]
[1725320523211,6.28675,2545.1,2544.9,2.3034]
[1725320523738,3.14337,2545.1,2545.0,0.18887409]
[1725320523896,5.05412279,2545.1,2545.0,0.18887409]
[1725320524096,8.05412279,2545.1,2545.0,0.18887409]
[1725320525694,11.69968961,2545.1,2545.0,0.18887409]
[1725320525939,10.33893682,2545.1,2545.0,0.18887409]
[1725320526139,6.64556682,2545.1,2545.0,0.18887409]
[1725320526342,6.14337,2545.1,2545.0,0.18887409]
[1725320526543,6.14337,2545.1,2545.0,2.49907409]
[1725320528460,3.0,2545.1,2545.0,2.7489815]
[1725320528604,6.14326,2545.2,2545.0,2.7489815]
[1725320528804,3.14329,2545.1,2545.0,2.7489815]
[1725320529024,6.14329,2545.1,2545.0,2.7489815]
[1725320529208,6.14329,2545.1,2545.0,2.49907409]
[1725320530109,9.28658,2545.1,2545.0,2.49907409]
[1725320530644,9.28658,2545.1,2545.0,0.18887409]
[1725320530933,3.14354,2544.9,2544.8,2.3135]
[1725320531139,6.14354,2544.9,2544.8,2.5026276]
[1725320534542,3.0,2544.9,2544.8,2.75339036]
[1725320542354,3.0,2545.1,2544.8,2.75339036]
[1725320542657,6.14329,2545.1,2544.8,2.75339036]
[1725320543438,3.0,2545.1,2544.9,0.27583904]
[1725320543851,3.0,2545.1,2545.0,0.18894072]
[1725320545028,6.14329,2545.1,2545.0,0.18894072]
[1725320545225,3.0,2545.1,2545.0,0.18894072]
[1725320545437,3.0,2545.1,2545.0,2.8445687]
[1725320545678,3.0,2545.3,2545.0,2.8445687]
[1725320546156,3.14329,2545.1,2545.0,2.8445687]
[1725320546466,6.14329,2545.1,2545.0,2.56674072]
[1725320548665,6.14329,2545.1,2545.0,0.18894072]
[1725320549038,6.14329,2545.1,2544.8,2.3539]
[1725320549224,6.14329,2545.1,2545.0,0.18894072]
[1725320549423,6.14329,2545.1,2544.9,0.18906747]
[1725320549623,3.0,2545.1,2545.0,2.54284072]
[1725320550631,3.14307,2545.3,2545.0,2.54284072]
[1725320550829,3.0,2545.2,2545.0,2.54284072]
[1725320551028,3.0,2545.4,2545.2,2.3539]
[1725320551442,6.14292,2545.4,2545.3,0.18855577]
[1725320551827,3.14344,2545.0,2544.8,2.3539]
[1725320552028,6.28697,2545.0,2544.8,3.31779]
[1725320552246,6.28697,2545.0,2544.7,0.005]
[1725320552247,3.14344,2545.0,2544.7,0.005]
[1725320552443,3.14366,2544.8,2544.7,0.005]
[1725320552671,6.14366,2544.8,2544.7,0.005]
[1725320553697,6.14366,2544.8,2544.7,0.19428768]
[1725320553900,6.14366,2544.8,2544.7,0.005]
[1725320554406,6.14366,2544.8,2544.7,0.19428768]
[1725320554697,6.14366,2544.8,2544.7,0.005]
[1725320554904,6.14366,2544.8,2544.7,0.19428768]
[1725320555101,6.14366,2544.8,2544.7,0.005]
[1725320555307,6.14366,2544.8,2544.7,0.19428768]
[1725320560204,7.072382,2544.8,2544.7,0.19428768]
[1725320560505,10.216042,2544.8,2544.7,0.19428768]
[1725320562612,10.766042,2544.8,2544.7,0.19428768]